[Event "Titled Tuesday Blitz February 28 Late 2023"]
[White "Drnovsek, Gal"]
[Black "Da Silva Junior, Sediney Mari"]
[WhiteFideId "14607077"]
[BlackFideId "2132079"]
[WhiteElo "2293"]
[BlackElo "1977"]
[Result "0-1"]
[Round "02"]
[TimeControl "180+2"]
[Date "2023.02.28"]
[WhiteClock "0:00:08"]
[BlackClock "0:00:10"]

1. e4 {[%clk 0:02:59]}  e6 {[%clk 0:02:59]} 2. d4 {[%clk 0:02:57]}  d5 {[%clk 0:02:59]} 3. Nd2 {[%clk 0:02:58]}  c5 {[%clk 0:02:58]} 4. Ngf3 {[%clk 0:02:58]}  dxe4 {[%clk 0:02:57]} 5. Nxe4 {[%clk 0:02:57]}  Nf6 {[%clk 0:02:57]} 6. Nxf6+ {[%clk 0:02:50]}  Qxf6 {[%clk 0:02:57]} 7. Be3 {[%clk 0:02:45]}  Nd7 {[%clk 0:02:51]} 8. Bb5 {[%clk 0:02:28]}  a6 {[%clk 0:02:50]} 9. Bxd7+ {[%clk 0:02:27]}  Bxd7 {[%clk 0:02:51]} 10. dxc5 {[%clk 0:02:27]}  Qxb2 {[%clk 0:02:50]} 11. O-O {[%clk 0:02:25]}  Bb5 {[%clk 0:02:30]} 12. Re1 {[%clk 0:02:25]}  Rd8 {[%clk 0:02:31]} 13. Bd4 {[%clk 0:02:24]}  Qa3 {[%clk 0:02:15]} 14. Re3 {[%clk 0:02:22]}  Qb4 {[%clk 0:01:52]} 15. c3 {[%clk 0:02:20]}  Qc4 {[%clk 0:01:50]} 16. Ne5 {[%clk 0:02:19]}  Qd5 {[%clk 0:01:43]} 17. Qh5 {[%clk 0:02:13]}  g6 {[%clk 0:01:41]} 18. Qg5 {[%clk 0:02:08]}  Be7 {[%clk 0:01:32]} 19. Qh6 {[%clk 0:01:59]}  Bf6 {[%clk 0:01:19]} 20. Rae1 {[%clk 0:01:47]}  Bxe5 {[%clk 0:00:40]} 21. Rxe5 {[%clk 0:01:46]}  Qxa2 {[%clk 0:00:33]} 22. Rxe6+ {[%clk 0:01:15]}  fxe6 {[%clk 0:00:33]} 23. Bxh8 {[%clk 0:00:57]}  Qe2 {[%clk 0:00:13]} 24. Qc1 {[%clk 0:00:56]}  Qd2 {[%clk 0:00:12]} 25. Rxe6+ {[%clk 0:00:48]}  Kf7 {[%clk 0:00:12]} 26. Qe1 {[%clk 0:00:46]}  Qxe1+ {[%clk 0:00:11]} 27. Rxe1 {[%clk 0:00:46]}  Rxh8 {[%clk 0:00:11]} 28. f4 {[%clk 0:00:39]}  Rc8 {[%clk 0:00:11]} 29. Re5 {[%clk 0:00:39]}  Bc4 {[%clk 0:00:10]} 30. Kf2 {[%clk 0:00:38]}  Rc6 {[%clk 0:00:10]} 31. Re1 {[%clk 0:00:35]}  Rxc5 {[%clk 0:00:09]} 32. Rb1 {[%clk 0:00:35]}  Bb5 {[%clk 0:00:10]} 33. Rb3 {[%clk 0:00:35]}  Bc6 {[%clk 0:00:08]} 34. Ke3 {[%clk 0:00:35]}  Kf6 {[%clk 0:00:07]} 35. g4 {[%clk 0:00:35]}  h5 {[%clk 0:00:07]} 36. h3 {[%clk 0:00:30]}  hxg4 {[%clk 0:00:07]} 37. hxg4 {[%clk 0:00:31]}  Rb5 {[%clk 0:00:07]} 38. Ra3 {[%clk 0:00:30]}  Rc5 {[%clk 0:00:07]} 39. Kd4 {[%clk 0:00:29]}  Rd5+ {[%clk 0:00:07]} 40. Ke3 {[%clk 0:00:29]}  Rc5 {[%clk 0:00:07]} 41. Kd4 {[%clk 0:00:30]}  Rb5 {[%clk 0:00:07]} 42. c4 {[%clk 0:00:28]}  Rb1 {[%clk 0:00:08]} 43. Ra5 {[%clk 0:00:18]}  Rf1 {[%clk 0:00:06]} 44. g5+ {[%clk 0:00:09]}  Kf7 {[%clk 0:00:03]} 45. Ke5 {[%clk 0:00:09]}  Re1+ {[%clk 0:00:03]} 46. Kd6 {[%clk 0:00:09]}  Re4 {[%clk 0:00:03]} 47. f5 {[%clk 0:00:09]}  gxf5 {[%clk 0:00:03]} 48. Rxf5+ {[%clk 0:00:10]}  Kg7 {[%clk 0:00:04]} 49. Ra5 {[%clk 0:00:09]}  Rxc4 {[%clk 0:00:04]} 50. Ke5 {[%clk 0:00:08]}  Rb4 {[%clk 0:00:04]} 51. Kd6 {[%clk 0:00:07]}  Rb5 {[%clk 0:00:05]} 52. Ra3 {[%clk 0:00:07]}  Rxg5 {[%clk 0:00:05]} 53. Re3 {[%clk 0:00:08]}  Rg6+ {[%clk 0:00:06]} 54. Kc7 {[%clk 0:00:08]}  a5 {[%clk 0:00:07]} 55. Re7+ {[%clk 0:00:08]}  Kh6 {[%clk 0:00:07]} 56. Re5 {[%clk 0:00:09]}  a4 {[%clk 0:00:07]} 57. Ra5 {[%clk 0:00:10]}  Rg5 {[%clk 0:00:07]} 58. Ra8 {[%clk 0:00:09]}  Rg3 {[%clk 0:00:07]} 59. Rh8+ {[%clk 0:00:09]}  Kg7 {[%clk 0:00:06]} 60. Ra8 {[%clk 0:00:08]}  a3 {[%clk 0:00:06]} 61. Kb6 {[%clk 0:00:08]}  Kf6 {[%clk 0:00:07]} 62. Kc5 {[%clk 0:00:09]}  Ke6 {[%clk 0:00:07]} 63. Kd4 {[%clk 0:00:09]}  Kd6 {[%clk 0:00:07]} 64. Rd8+ {[%clk 0:00:10]}  Kc7 {[%clk 0:00:07]} 65. Ra8 {[%clk 0:00:11]}  Kb6 {[%clk 0:00:08]} 66. Kc4 {[%clk 0:00:11]}  Rg4+ {[%clk 0:00:06]} 67. Kb3 {[%clk 0:00:11]}  Rg3+ {[%clk 0:00:07]} 68. Ka2 {[%clk 0:00:11]}  Kb5 {[%clk 0:00:08]} 69. Ra7 {[%clk 0:00:09]}  Kb4 {[%clk 0:00:07]} 70. Kb1 {[%clk 0:00:04]}  b5 {[%clk 0:00:08]} 71. Ka2 {[%clk 0:00:04]}  Bd5+ {[%clk 0:00:08]} 72. Kb1 {[%clk 0:00:05]}  Kb3 {[%clk 0:00:08]} 73. Kc1 {[%clk 0:00:04]}  a2 {[%clk 0:00:08]} 74. Kd2 {[%clk 0:00:05]}  Rg2+ {[%clk 0:00:08]} 75. Kd3 {[%clk 0:00:05]}  Rg1 {[%clk 0:00:08]} 76. Kd4 {[%clk 0:00:05]}  a1=Q+ {[%clk 0:00:08]} 77. Rxa1 {[%clk 0:00:06]}  Rxa1 {[%clk 0:00:08]} 78. Kxd5 {[%clk 0:00:07]}  Rc1 {[%clk 0:00:09]} 79. Kd4 {[%clk 0:00:06]}  Ka3 {[%clk 0:00:09]} 80. Ke5 {[%clk 0:00:07]}  b4 {[%clk 0:00:09]} 81. Kd6 {[%clk 0:00:08]}  b3 {[%clk 0:00:10]} 0-1


[Site "https://www.chess.com"]

[Event "Titled Tuesday Blitz February 28 Late 2023"]
[White "Leonte, Sebastian-Marian"]
[Black "Kalajzic, Ivan"]
[WhiteFideId "1268767"]
[BlackFideId "14506378"]
[WhiteElo "2256"]
[BlackElo "2203"]
[Result "0-1"]
[Round "02"]
[TimeControl "180+2"]
[Date "2023.02.28"]
[WhiteClock "0:00:16"]
[BlackClock "0:00:52"]

1. e4 {[%clk 0:03:00]}  Nc6 {[%clk 0:02:59]} 2. Nf3 {[%clk 0:02:57]}  d6 {[%clk 0:02:59]} 3. d4 {[%clk 0:02:52]}  Bg4 {[%clk 0:02:59]} 4. Be2 {[%clk 0:02:53]}  e5 {[%clk 0:02:59]} 5. d5 {[%clk 0:02:46]}  Nce7 {[%clk 0:02:59]} 6. h3 {[%clk 0:02:45]}  Bd7 {[%clk 0:02:57]} 7. c4 {[%clk 0:02:41]}  Nf6 {[%clk 0:02:57]} 8. Nc3 {[%clk 0:02:40]}  g6 {[%clk 0:02:58]} 9. Be3 {[%clk 0:02:39]}  Bg7 {[%clk 0:02:59]} 10. Qd2 {[%clk 0:02:39]}  O-O {[%clk 0:02:59]} 11. g4 {[%clk 0:02:35]}  a6 {[%clk 0:02:57]} 12. Bh6 {[%clk 0:02:31]}  b5 {[%clk 0:02:56]} 13. Bxg7 {[%clk 0:02:07]}  Kxg7 {[%clk 0:02:56]} 14. Qe3 {[%clk 0:02:00]}  Qb8 {[%clk 0:02:42]} 15. c5 {[%clk 0:01:52]}  b4 {[%clk 0:02:35]} 16. Nd1 {[%clk 0:01:46]}  Bb5 {[%clk 0:02:35]} 17. c6 {[%clk 0:01:34]}  Nfxd5 {[%clk 0:02:04]} 18. exd5 {[%clk 0:01:30]}  Nxd5 {[%clk 0:02:04]} 19. Qd2 {[%clk 0:01:23]}  Nf4 {[%clk 0:01:56]} 20. Bxb5 {[%clk 0:01:11]}  Qxb5 {[%clk 0:01:57]} 21. Ne3 {[%clk 0:01:10]}  Qxc6 {[%clk 0:01:48]} 22. Qd1 {[%clk 0:00:53]}  Qe4 {[%clk 0:01:22]} 23. O-O {[%clk 0:00:40]}  Nxh3+ {[%clk 0:01:20]} 24. Kg2 {[%clk 0:00:38]}  Nf4+ {[%clk 0:01:19]} 25. Kg3 {[%clk 0:00:38]}  f5 {[%clk 0:01:05]} 26. Ng5 {[%clk 0:00:34]}  Qb7 {[%clk 0:01:01]} 27. Rh1 {[%clk 0:00:27]}  h6 {[%clk 0:00:57]} 28. Rxh6 {[%clk 0:00:18]}  Kxh6 {[%clk 0:00:53]} 29. Qh1+ {[%clk 0:00:16]}  Qxh1 {[%clk 0:00:53]} 30. Rxh1+ {[%clk 0:00:16]}  Kxg5 {[%clk 0:00:52]} 0-1


[Site "https://www.chess.com"]

[Event "Titled Tuesday Blitz February 28 Late 2023"]
[White "Mendez Machado, Andre"]
[Black "Toncheva, Nadya"]
[WhiteFideId "6603793"]
[BlackFideId "2924056"]
[WhiteElo "1989"]
[BlackElo "2101"]
[Result "0-1"]
[Round "02"]
[TimeControl "180+2"]
[Date "2023.02.28"]
[WhiteClock "0:00:02"]
[BlackClock "0:00:19"]

1. e4 {[%clk 0:03:00]}  c5 {[%clk 0:03:00]} 2. Nc3 {[%clk 0:03:00]}  Nc6 {[%clk 0:03:00]} 3. Bb5 {[%clk 0:03:00]}  Nd4 {[%clk 0:03:00]} 4. Nf3 {[%clk 0:03:00]}  a6 {[%clk 0:02:59]} 5. Bd3 {[%clk 0:03:00]}  Nc6 {[%clk 0:03:00]} 6. O-O {[%clk 0:02:59]}  e6 {[%clk 0:03:00]} 7. Nd5 {[%clk 0:02:59]}  g6 {[%clk 0:02:59]} 8. Re1 {[%clk 0:02:58]}  Bg7 {[%clk 0:03:00]} 9. c3 {[%clk 0:02:57]}  d6 {[%clk 0:02:59]} 10. Ne3 {[%clk 0:02:56]}  Nge7 {[%clk 0:02:59]} 11. Bc2 {[%clk 0:02:56]}  e5 {[%clk 0:02:59]} 12. b3 {[%clk 0:02:29]}  O-O {[%clk 0:02:57]} 13. Bb2 {[%clk 0:02:29]}  h6 {[%clk 0:02:45]} 14. d4 {[%clk 0:02:26]}  exd4 {[%clk 0:02:44]} 15. cxd4 {[%clk 0:02:27]}  d5 {[%clk 0:02:16]} 16. exd5 {[%clk 0:02:05]}  Nxd5 {[%clk 0:02:13]} 17. Nxd5 {[%clk 0:01:56]}  Qxd5 {[%clk 0:02:13]} 18. Be4 {[%clk 0:01:49]}  Qh5 {[%clk 0:02:06]} 19. Bxc6 {[%clk 0:01:25]}  bxc6 {[%clk 0:02:07]} 20. Rc1 {[%clk 0:01:25]}  Rd8 {[%clk 0:01:35]} 21. Ne5 {[%clk 0:00:13]}  Qxd1 {[%clk 0:00:56]} 22. Rexd1 {[%clk 0:00:14]}  cxd4 {[%clk 0:00:51]} 23. Nxc6 {[%clk 0:00:13]}  Re8 {[%clk 0:00:49]} 24. Bxd4 {[%clk 0:00:13]}  Bg4 {[%clk 0:00:42]} 25. f3 {[%clk 0:00:12]}  Bf5 {[%clk 0:00:39]} 26. Bxg7 {[%clk 0:00:11]}  Kxg7 {[%clk 0:00:40]} 27. Nd4 {[%clk 0:00:11]}  Bc8 {[%clk 0:00:34]} 28. Kf2 {[%clk 0:00:10]}  a5 {[%clk 0:00:31]} 29. Re1 {[%clk 0:00:09]}  Rd8 {[%clk 0:00:29]} 30. Nc6 {[%clk 0:00:08]}  Rd2+ {[%clk 0:00:27]} 31. Re2 {[%clk 0:00:09]}  Rd6 {[%clk 0:00:27]} 32. Ne5 {[%clk 0:00:08]}  Ba6 {[%clk 0:00:26]} 33. Rec2 {[%clk 0:00:07]}  Re8 {[%clk 0:00:23]} 34. Nc4 {[%clk 0:00:07]}  Rd5 {[%clk 0:00:21]} 35. Re1 {[%clk 0:00:07]}  Red8 {[%clk 0:00:21]} 36. Ree2 {[%clk 0:00:05]}  a4 {[%clk 0:00:21]} 37. g3 {[%clk 0:00:02]}  axb3 {[%clk 0:00:20]} 38. axb3 {[%clk 0:00:03]}  Rb8 {[%clk 0:00:20]} 39. Rb2 {[%clk 0:00:03]}  Rdb5 {[%clk 0:00:19]} 40. Re3 {[%clk 0:00:02]}  Rb4 {[%clk 0:00:19]} 41. Rc3 {[%clk 0:00:01]}  Bxc4 {[%clk 0:00:19]} 42. Rxc4 {[%clk 0:00:02]}  Rxc4 {[%clk 0:00:19]} 0-1


[Site "https://www.chess.com"]

[Event "Titled Tuesday Blitz February 28 Late 2023"]
[White "Kleinman, Michael"]
[Black "Onslow, Alfie"]
[WhiteFideId "2609479"]
[BlackFideId "436976"]
[WhiteElo "2287"]
[BlackElo "2114"]
[Result "1-0"]
[Round "02"]
[TimeControl "180+2"]
[Date "2023.02.28"]
[WhiteClock "0:01:01"]
[BlackClock "0:01:39"]

1. e4 {[%clk 0:03:00]}  d6 {[%clk 0:02:59]} 2. d4 {[%clk 0:02:59]}  Nf6 {[%clk 0:03:00]} 3. Nc3 {[%clk 0:03:00]}  e5 {[%clk 0:03:00]} 4. Nf3 {[%clk 0:02:58]}  Nbd7 {[%clk 0:02:59]} 5. Bc4 {[%clk 0:02:58]}  Be7 {[%clk 0:02:59]} 6. O-O {[%clk 0:02:57]}  O-O {[%clk 0:02:57]} 7. a4 {[%clk 0:02:57]}  exd4 {[%clk 0:02:54]} 8. Qxd4 {[%clk 0:02:53]}  Ng4 {[%clk 0:02:47]} 9. Bf4 {[%clk 0:02:43]}  Bf6 {[%clk 0:02:47]} 10. Qd2 {[%clk 0:02:41]}  Nge5 {[%clk 0:02:47]} 11. Nxe5 {[%clk 0:02:39]}  Nxe5 {[%clk 0:02:48]} 12. Be2 {[%clk 0:02:36]}  Be6 {[%clk 0:02:44]} 13. Nd5 {[%clk 0:02:33]}  Bxd5 {[%clk 0:02:44]} 14. exd5 {[%clk 0:02:33]}  Re8 {[%clk 0:02:43]} 15. Rfe1 {[%clk 0:02:33]}  Ng6 {[%clk 0:02:39]} 16. Be3 {[%clk 0:02:26]}  Bxb2 {[%clk 0:02:31]} 17. Rab1 {[%clk 0:02:26]}  Qf6 {[%clk 0:02:31]} 18. Qd3 {[%clk 0:01:44]}  b6 {[%clk 0:02:24]} 19. c4 {[%clk 0:01:36]}  Be5 {[%clk 0:02:20]} 20. g3 {[%clk 0:01:35]}  a5 {[%clk 0:02:14]} 21. Bg4 {[%clk 0:01:25]}  Bc3 {[%clk 0:02:09]} 22. Re2 {[%clk 0:01:24]}  Ne5 {[%clk 0:02:04]} 23. Qf5 {[%clk 0:01:11]}  Qxf5 {[%clk 0:01:54]} 24. Bxf5 {[%clk 0:01:12]}  Nf3+ {[%clk 0:01:51]} 25. Kf1 {[%clk 0:01:08]}  Nd4 {[%clk 0:01:50]} 26. Bxd4 {[%clk 0:01:07]}  Bxd4 {[%clk 0:01:49]} 27. Rbe1 {[%clk 0:01:02]}  g6 {[%clk 0:01:42]} 28. Rxe8+ {[%clk 0:01:00]}  Rxe8 {[%clk 0:01:39]} 29. Rxe8+ {[%clk 0:01:01]}  Kg7 {[%clk 0:01:39]} 1-0


[Site "https://www.chess.com"]

[Event "Titled Tuesday Blitz February 28 Late 2023"]
[White "Womacka, Mathias"]
[Black "Gamage, Wanshini Vidusama"]
[WhiteFideId "4611390"]
[BlackFideId "9953752"]
[WhiteElo "2377"]
[BlackElo "2200"]
[Result "1-0"]
[Round "02"]
[TimeControl "180+2"]
[Date "2023.02.28"]
[WhiteClock "0:01:03"]
[BlackClock "0:01:07"]

1. e4 {[%clk 0:03:00]}  c5 {[%clk 0:02:59]} 2. Nf3 {[%clk 0:03:00]}  d6 {[%clk 0:03:00]} 3. d4 {[%clk 0:03:00]}  cxd4 {[%clk 0:03:00]} 4. Nxd4 {[%clk 0:03:01]}  Nf6 {[%clk 0:03:01]} 5. Nc3 {[%clk 0:03:01]}  a6 {[%clk 0:03:01]} 6. Be2 {[%clk 0:03:00]}  e5 {[%clk 0:03:01]} 7. Nb3 {[%clk 0:02:59]}  Be7 {[%clk 0:03:01]} 8. O-O {[%clk 0:02:59]}  O-O {[%clk 0:03:01]} 9. Kh1 {[%clk 0:02:59]}  Nc6 {[%clk 0:03:00]} 10. f4 {[%clk 0:02:57]}  b5 {[%clk 0:02:59]} 11. a4 {[%clk 0:02:50]}  b4 {[%clk 0:02:51]} 12. Nd5 {[%clk 0:02:50]}  Nxe4 {[%clk 0:02:42]} 13. Bf3 {[%clk 0:02:49]}  Bf5 {[%clk 0:02:32]} 14. g4 {[%clk 0:02:34]}  Bh4 {[%clk 0:02:22]} 15. Qe2 {[%clk 0:02:18]}  Nf2+ {[%clk 0:02:16]} 16. Rxf2 {[%clk 0:02:04]}  Bxf2 {[%clk 0:02:16]} 17. Qxf2 {[%clk 0:01:58]}  Bd7 {[%clk 0:02:16]} 18. f5 {[%clk 0:01:51]}  Rc8 {[%clk 0:02:12]} 19. f6 {[%clk 0:01:37]}  Be6 {[%clk 0:01:56]} 20. g5 {[%clk 0:01:22]}  Bxd5 {[%clk 0:01:46]} 21. Bxd5 {[%clk 0:01:23]}  Qd7 {[%clk 0:01:34]} 22. Be3 {[%clk 0:01:20]}  Qg4 {[%clk 0:01:25]} 23. Rg1 {[%clk 0:01:09]}  Qd7 {[%clk 0:01:22]} 24. fxg7 {[%clk 0:01:05]}  Kxg7 {[%clk 0:01:15]} 25. Qf6+ {[%clk 0:01:05]}  Kg8 {[%clk 0:01:15]} 26. g6 {[%clk 0:01:05]}  Qe7 {[%clk 0:01:07]} 27. gxf7# {[%clk 0:01:03]} 1-0


[Site "https://www.chess.com"]

[Event "Titled Tuesday Blitz February 28 Late 2023"]
[White "Dudzinski, Pawel"]
[Black "rikchessmx"]
[WhiteFideId "1117890"]
[WhiteElo "2099"]
[BlackElo "2175"]
[Result "1-0"]
[Round "02"]
[TimeControl "180+2"]
[Date "2023.02.28"]
[WhiteClock "0:00:10"]
[BlackClock "0:00:10"]

1. e4 {[%clk 0:02:56]}  c5 {[%clk 0:02:44]} 2. Nc3 {[%clk 0:02:54]}  g6 {[%clk 0:02:42]} 3. g3 {[%clk 0:02:54]}  Bg7 {[%clk 0:02:43]} 4. Bg2 {[%clk 0:02:55]}  d6 {[%clk 0:02:43]} 5. d3 {[%clk 0:02:55]}  Nc6 {[%clk 0:02:44]} 6. Be3 {[%clk 0:02:56]}  Nh6 {[%clk 0:02:44]} 7. h3 {[%clk 0:02:56]}  f5 {[%clk 0:02:42]} 8. Qd2 {[%clk 0:02:56]}  Nf7 {[%clk 0:02:42]} 9. exf5 {[%clk 0:02:54]}  Bxf5 {[%clk 0:02:41]} 10. g4 {[%clk 0:02:55]}  Bd7 {[%clk 0:02:40]} 11. f4 {[%clk 0:02:56]}  e5 {[%clk 0:02:40]} 12. Nf3 {[%clk 0:02:55]}  exf4 {[%clk 0:02:39]} 13. Bxf4 {[%clk 0:02:56]}  O-O {[%clk 0:02:39]} 14. O-O {[%clk 0:02:56]}  Nd4 {[%clk 0:01:57]} 15. Nxd4 {[%clk 0:02:31]}  Bxd4+ {[%clk 0:01:58]} 16. Be3 {[%clk 0:02:31]}  Bc6 {[%clk 0:01:17]} 17. Bxd4 {[%clk 0:02:20]}  cxd4 {[%clk 0:01:13]} 18. Nd5 {[%clk 0:02:08]}  Ne5 {[%clk 0:01:11]} 19. g5 {[%clk 0:02:04]}  Bxd5 {[%clk 0:01:08]} 20. Bxd5+ {[%clk 0:02:03]}  Kg7 {[%clk 0:01:06]} 21. Rxf8 {[%clk 0:01:50]}  Qxf8 {[%clk 0:01:03]} 22. Rf1 {[%clk 0:01:51]}  Qc8 {[%clk 0:00:56]} 23. Qf4 {[%clk 0:01:19]}  Qd8 {[%clk 0:00:56]} 24. h4 {[%clk 0:01:08]}  Qe7 {[%clk 0:00:55]} 25. Qxd4 {[%clk 0:01:04]}  Rf8 {[%clk 0:00:53]} 26. Rxf8 {[%clk 0:00:52]}  Qxf8 {[%clk 0:00:52]} 27. Bxb7 {[%clk 0:00:44]}  Qb8 {[%clk 0:00:42]} 28. Bg2 {[%clk 0:00:42]}  Qc7 {[%clk 0:00:28]} 29. c3 {[%clk 0:00:36]}  Kf8 {[%clk 0:00:25]} 30. Qf4+ {[%clk 0:00:33]}  Ke8 {[%clk 0:00:22]} 31. d4 {[%clk 0:00:30]}  Nc4 {[%clk 0:00:22]} 32. b3 {[%clk 0:00:24]}  Nb6 {[%clk 0:00:20]} 33. Qe4+ {[%clk 0:00:24]}  Kd8 {[%clk 0:00:19]} 34. Qc6 {[%clk 0:00:23]}  Qe7 {[%clk 0:00:18]} 35. Qe4 {[%clk 0:00:22]}  Qd7 {[%clk 0:00:17]} 36. c4 {[%clk 0:00:22]}  d5 {[%clk 0:00:16]} 37. cxd5 {[%clk 0:00:20]}  Qb5 {[%clk 0:00:16]} 38. d6 {[%clk 0:00:19]}  Qd7 {[%clk 0:00:15]} 39. Qe7+ {[%clk 0:00:17]}  Qxe7 {[%clk 0:00:15]} 40. dxe7+ {[%clk 0:00:18]}  Kxe7 {[%clk 0:00:16]} 41. Kf2 {[%clk 0:00:19]}  Kd6 {[%clk 0:00:17]} 42. Ke3 {[%clk 0:00:19]}  Nd7 {[%clk 0:00:17]} 43. Be4 {[%clk 0:00:18]}  Nf8 {[%clk 0:00:18]} 44. d5 {[%clk 0:00:16]}  Nd7 {[%clk 0:00:17]} 45. Kd4 {[%clk 0:00:16]}  Ne5 {[%clk 0:00:17]} 46. b4 {[%clk 0:00:15]}  Nd7 {[%clk 0:00:17]} 47. a4 {[%clk 0:00:15]}  Nb6 {[%clk 0:00:17]} 48. a5 {[%clk 0:00:14]}  Nc8 {[%clk 0:00:16]} 49. h5 {[%clk 0:00:14]}  gxh5 {[%clk 0:00:15]} 50. Bxh7 {[%clk 0:00:14]}  Ne7 {[%clk 0:00:15]} 51. Be4 {[%clk 0:00:14]}  h4 {[%clk 0:00:15]} 52. g6 {[%clk 0:00:14]}  h3 {[%clk 0:00:14]} 53. g7 {[%clk 0:00:15]}  h2 {[%clk 0:00:14]} 54. b5 {[%clk 0:00:14]}  Nf5+ {[%clk 0:00:13]} 55. Bxf5 {[%clk 0:00:10]}  h1=Q {[%clk 0:00:13]} 56. g8=Q {[%clk 0:00:11]}  Qd1+ {[%clk 0:00:12]} 57. Bd3 {[%clk 0:00:10]}  Qg4+ {[%clk 0:00:10]} 58. Qxg4 {[%clk 0:00:09]}  a6 {[%clk 0:00:10]} 59. Qe6+ {[%clk 0:00:10]} 1-0


[Site "https://www.chess.com"]

[Event "Titled Tuesday Blitz February 28 Late 2023"]
[White "Matsuura, Frederico"]
[Black "TimGrutter03"]
[WhiteFideId "2107848"]
[WhiteElo "2302"]
[BlackElo "2465"]
[Result "1-0"]
[Round "02"]
[TimeControl "180+2"]
[Date "2023.02.28"]
[WhiteClock "0:00:14"]
[BlackClock "0:00:01"]

1. d4 {[%clk 0:03:00]}  g6 {[%clk 0:03:00]} 2. e4 {[%clk 0:02:59]}  Bg7 {[%clk 0:03:01]} 3. Bc4 {[%clk 0:02:58]}  d6 {[%clk 0:03:01]} 4. Nf3 {[%clk 0:02:56]}  c6 {[%clk 0:03:00]} 5. a4 {[%clk 0:02:55]}  d5 {[%clk 0:02:58]} 6. exd5 {[%clk 0:02:52]}  cxd5 {[%clk 0:02:59]} 7. Bb5+ {[%clk 0:02:47]}  Bd7 {[%clk 0:02:59]} 8. O-O {[%clk 0:02:36]}  Nf6 {[%clk 0:02:59]} 9. Ne5 {[%clk 0:02:35]}  O-O {[%clk 0:02:55]} 10. Nxd7 {[%clk 0:02:34]}  Nbxd7 {[%clk 0:02:56]} 11. c3 {[%clk 0:02:33]}  a6 {[%clk 0:02:50]} 12. Bd3 {[%clk 0:02:31]}  e5 {[%clk 0:02:47]} 13. dxe5 {[%clk 0:02:29]}  Nxe5 {[%clk 0:02:48]} 14. Bf4 {[%clk 0:02:24]}  Nc6 {[%clk 0:02:45]} 15. Nd2 {[%clk 0:02:21]}  Qb6 {[%clk 0:02:35]} 16. Qb3 {[%clk 0:02:15]}  Qa7 {[%clk 0:02:17]} 17. Be3 {[%clk 0:02:02]}  Qb8 {[%clk 0:02:17]} 18. Nf3 {[%clk 0:02:01]}  Ne5 {[%clk 0:02:03]} 19. Nxe5 {[%clk 0:01:55]}  Qxe5 {[%clk 0:02:04]} 20. Bd4 {[%clk 0:01:51]}  Qd6 {[%clk 0:01:59]} 21. h3 {[%clk 0:01:47]}  Qd7 {[%clk 0:01:49]} 22. Rfe1 {[%clk 0:01:32]}  Rfe8 {[%clk 0:01:48]} 23. a5 {[%clk 0:01:26]}  Ne4 {[%clk 0:01:41]} 24. Bxg7 {[%clk 0:01:22]}  Kxg7 {[%clk 0:01:42]} 25. Qb4 {[%clk 0:01:13]}  f5 {[%clk 0:01:20]} 26. Qd4+ {[%clk 0:01:03]}  Nf6 {[%clk 0:01:20]} 27. Qb6 {[%clk 0:00:50]}  Rxe1+ {[%clk 0:01:12]} 28. Rxe1 {[%clk 0:00:49]}  Re8 {[%clk 0:01:12]} 29. Rxe8 {[%clk 0:00:46]}  Nxe8 {[%clk 0:01:13]} 30. Qd4+ {[%clk 0:00:44]}  Nf6 {[%clk 0:01:10]} 31. Qe5 {[%clk 0:00:44]}  Qd8 {[%clk 0:01:04]} 32. b4 {[%clk 0:00:39]}  Qe8 {[%clk 0:00:49]} 33. Qc7+ {[%clk 0:00:37]}  Qd7 {[%clk 0:00:38]} 34. Qc5 {[%clk 0:00:35]}  Ne4 {[%clk 0:00:34]} 35. Qd4+ {[%clk 0:00:35]}  Nf6 {[%clk 0:00:24]} 36. Be2 {[%clk 0:00:31]}  Qe7 {[%clk 0:00:19]} 37. Bf3 {[%clk 0:00:32]}  Qe1+ {[%clk 0:00:18]} 38. Kh2 {[%clk 0:00:32]}  Qe6 {[%clk 0:00:19]} 39. c4 {[%clk 0:00:26]}  dxc4 {[%clk 0:00:17]} 40. Bxb7 {[%clk 0:00:26]}  Kf7 {[%clk 0:00:07]} 41. b5 {[%clk 0:00:25]}  axb5 {[%clk 0:00:04]} 42. a6 {[%clk 0:00:26]}  Qe7 {[%clk 0:00:01]} 43. Bd5+ {[%clk 0:00:18]}  Nxd5 {[%clk 0:00:01]} 44. Qxd5+ {[%clk 0:00:17]}  Kf6 {[%clk 0:00:01]} 45. Qd4+ {[%clk 0:00:14]} 1-0


[Site "https://www.chess.com"]

[Event "Titled Tuesday Blitz February 28 Late 2023"]
[White "Adel, Sara"]
[Black "Sokolin, Leonid"]
[WhiteFideId "10616764"]
[BlackFideId "2009161"]
[WhiteElo "1997"]
[BlackElo "2394"]
[Result "1-0"]
[Round "02"]
[TimeControl "180+2"]
[Date "2023.02.28"]
[WhiteClock "0:00:53"]
[BlackClock "0:00:17"]

1. e4 {[%clk 0:02:59]}  c5 {[%clk 0:02:55]} 2. Nf3 {[%clk 0:02:59]}  Nc6 {[%clk 0:02:55]} 3. d4 {[%clk 0:03:00]}  cxd4 {[%clk 0:02:54]} 4. Nxd4 {[%clk 0:03:01]}  e5 {[%clk 0:02:54]} 5. Nb5 {[%clk 0:02:55]}  d6 {[%clk 0:02:53]} 6. N1c3 {[%clk 0:02:54]}  a6 {[%clk 0:02:53]} 7. Na3 {[%clk 0:02:55]}  Be6 {[%clk 0:02:49]} 8. Nd5 {[%clk 0:02:53]}  Bxd5 {[%clk 0:02:44]} 9. Qxd5 {[%clk 0:02:49]}  Nf6 {[%clk 0:02:43]} 10. Qd1 {[%clk 0:02:47]}  d5 {[%clk 0:02:23]} 11. exd5 {[%clk 0:02:28]}  Qxd5 {[%clk 0:02:23]} 12. Qxd5 {[%clk 0:02:24]}  Nxd5 {[%clk 0:02:22]} 13. Bc4 {[%clk 0:02:24]}  O-O-O {[%clk 0:02:20]} 14. Bg5 {[%clk 0:02:21]}  f6 {[%clk 0:02:19]} 15. Bh4 {[%clk 0:02:21]}  Bxa3 {[%clk 0:02:03]} 16. bxa3 {[%clk 0:02:20]}  h5 {[%clk 0:02:02]} 17. O-O-O {[%clk 0:02:03]}  Nc3 {[%clk 0:01:53]} 18. Rxd8+ {[%clk 0:01:45]}  Rxd8 {[%clk 0:01:48]} 19. f3 {[%clk 0:01:46]}  Nd4 {[%clk 0:01:22]} 20. Be1 {[%clk 0:01:33]}  Nde2+ {[%clk 0:00:40]} 21. Kb2 {[%clk 0:01:33]}  Nd1+ {[%clk 0:00:40]} 22. Ka1 {[%clk 0:01:26]}  Ne3 {[%clk 0:00:35]} 23. Bxe2 {[%clk 0:01:23]}  Nxc2+ {[%clk 0:00:35]} 24. Kb2 {[%clk 0:01:23]}  Nd4 {[%clk 0:00:34]} 25. Bc4 {[%clk 0:01:23]}  b5 {[%clk 0:00:33]} 26. Bd3 {[%clk 0:01:21]}  Kb7 {[%clk 0:00:30]} 27. Ba5 {[%clk 0:01:20]}  Rd7 {[%clk 0:00:25]} 28. Be4+ {[%clk 0:01:20]}  Ka7 {[%clk 0:00:25]} 29. Rc1 {[%clk 0:01:20]}  f5 {[%clk 0:00:23]} 30. Bc6 {[%clk 0:00:55]}  Rd6 {[%clk 0:00:22]} 31. Be8 {[%clk 0:00:55]}  g6 {[%clk 0:00:19]} 32. Rc7+ {[%clk 0:00:55]}  Kb8 {[%clk 0:00:18]} 33. Rg7 {[%clk 0:00:54]}  Nc6 {[%clk 0:00:17]} 34. Bc7+ {[%clk 0:00:53]} 1-0


[Site "https://www.chess.com"]